fUSD/lending_fUSD_20240216
["ID","MTS","AMOUNT","RATE_DAILY","PERIOD"]
[314212568,1708085454292,-5800.0,0.00041858,2]
[314212569,1708085454301,-5800.0,0.00041867,2]
[314212570,1708085454310,-5800.0,0.00041875,2]
[314212571,1708085454319,-1000.0,0.00041899,2]
[314212572,1708085454328,-2371.98,0.000419,7]
[314212573,1708085454337,-3000.0,0.000419,49]
[314212574,1708085454350,-3000.0,0.0004191,49]
[314212575,1708085454359,-162.36,0.00041916,2]
[314212576,1708085454369,-1000.0,0.00041917,7]
[314212577,1708085454378,-532.15,0.00041917,30]
[314212578,1708085454390,-500.0,0.00041917,30]
[314212579,1708085454401,-500.0,0.00041917,7]
[314212580,1708085454410,-500.0,0.00041917,7]
[314212581,1708085454421,-509.29,0.00041917,30]
[314212582,1708085454430,-500.0,0.00041917,30]
[314212583,1708085454440,-500.0,0.00041917,30]
[314212584,1708085454449,-3915.01,0.00041917,30]
[314212585,1708085454458,-755.64,0.00041917,30]
[314212586,1708085454467,-500.0,0.00041917,7]
[314212587,1708085454476,-500.0,0.00041917,30]
[314212588,1708085454485,-577.92,0.00041917,7]
[314212589,1708085454494,-643.98395736,0.00041917,30]
[314212590,1708085454504,-500.0,0.00041917,30]
[314212591,1708085454514,-500.0,0.00041917,30]
[314212592,1708085454523,-500.0,0.00041917,30]
[314212593,1708085454532,-351.29,0.00041917,30]
[314212594,1708085454540,-607.69,0.00041917,30]
[314212595,1708085454549,-500.0,0.00041917,30]
[314212596,1708085454559,-2559.47,0.00041917,30]
[314212597,1708085454568,-2676.8,0.00041917,30]
[314212598,1708085454577,-1993.32,0.00041917,30]
[314212599,1708085454586,-500.0,0.00041917,30]
[314212600,1708085454596,-508.32,0.00041917,30]
[314212601,1708085454606,-500.0,0.00041917,30]
[314212602,1708085454615,-500.0,0.00041917,30]
[314212603,1708085454625,-150.0,0.00041917,3]
[314212604,1708085454635,-822.82,0.00041918,2]
[314212605,1708085454644,-11328.05656985,0.00041918,4]
[314212606,1708085454654,-5483.874982,0.0004192,49]
[314212607,1708085454663,-2000.0,0.00041921,7]
[314212608,1708085454673,-200.0,0.00041921,7]
[314212609,1708085454682,-500.0,0.00041946,7]
[314212610,1708085454691,-500.0,0.00041946,7]
[314212611,1708085454700,-5800.0,0.00041951,2]
[314212612,1708085454709,-350.74489284,0.00041959,5]
[314212613,1708085454718,-153.0,0.00041977,7]
[314212614,1708085454728,-185.0,0.00041977,7]
[314212615,1708085454737,-100000.0,0.00042,22]
[314212616,1708085454747,-965.23195016,0.00042,7]
[314212617,1708085454756,-10000.0,0.00042,120]
[314212618,1708085454766,-10000.0,0.00042,60]
[314212619,1708085454775,-706.13,0.00042,4]
[314212620,1708085454786,-706.13,0.00042,4]
[314212621,1708085454795,-706.13,0.00042,4]
[314212622,1708085454804,-706.13,0.00042,4]
[314212623,1708085454814,-706.13,0.00042,4]
[314212624,1708085454823,-706.13,0.00042,4]
[314212625,1708085454832,-706.13,0.00042,4]
[314212626,1708085454843,-706.13,0.00042,4]
[314212627,1708085454853,-706.13,0.00042,4]
[314212628,1708085454862,-706.13,0.00042,4]
[314212629,1708085454872,-706.13,0.00042,4]
[314212630,1708085454881,-706.13,0.00042,4]
[314212631,1708085454890,-706.13,0.00042,4]
[314212632,1708085454900,-706.13,0.00042,4]
[314212633,1708085454909,-706.13,0.00042,4]
[314212634,1708085454918,-706.13,0.00042,4]
[314212635,1708085454927,-706.13,0.00042,4]
[314212636,1708085454937,-706.13,0.00042,4]
[314212637,1708085454947,-706.13,0.00042,4]
[314212638,1708085454956,-706.13,0.00042,4]
[314212639,1708085454965,-154.24,0.00042,4]
[314212640,1708085454975,-154.24,0.00042,4]
[314212641,1708085454984,-240.87,0.00042,2]
[314212642,1708085454996,-1082.0,0.00042,30]
[314212643,1708085455005,-10000.0,0.00042,30]
[314212644,1708085455015,-200.0,0.00042,2]
[314212645,1708085455026,-377.99618548,0.00042,15]
[314212646,1708085455036,-219578.90511852,0.00042,15]
[314212647,1708085455045,-500.0,0.00042025,4]
[314212648,1708085455054,-500.0,0.00042034,4]
[314212649,1708085455063,-931.69523334,0.0004204,10]
[314212650,1708085455073,-500.0,0.00042042,4]
[314212651,1708085455083,-176.42331574,0.0004205,35]
[314212652,1708085455092,-500.0,0.00042051,4]
[314212653,1708085455102,-666.0,0.00042054,2]
[314212654,1708085455111,-160.0,0.0004206,3]
[314212655,1708085455120,-500.0,0.0004206,4]
[314212656,1708085455131,-348.42241477,0.0004206,4]
[314212657,1708085455140,-6730.68761591,0.0004206,3]
[314212658,1708085455149,-800.0,0.00042082,20]
[314212659,1708085455158,-200.0,0.00042082,20]
[314212660,1708085455168,-500.0,0.00042082,20]
[314212661,1708085455177,-1180.04,0.00042092,15]
[314212662,1708085455187,-153.0,0.00042114,7]
[314212663,1708085455197,-185.0,0.00042114,7]
[314212664,1708085455206,-154.0,0.00042135,28]
[314212665,1708085455216,-1060.89403454,0.00042173,16]
[314212666,1708085455225,-750.0,0.00042191,7]
[314212667,1708085455234,-1000.0,0.00042191,7]
[314212668,1708085455244,-532.15,0.00042191,30]
[314212669,1708085455255,-500.0,0.00042191,30]
[314212670,1708085455269,-512.9336614,0.00042191,7]
[314212671,1708085455278,-500.0,0.00042191,7]
[314212672,1708085455288,-509.29,0.00042191,30]
[314212673,1708085455297,-500.0,0.00042191,30]
[314212674,1708085455307,-500.0,0.00042191,30]
[314212675,1708085455316,-3915.01,0.00042191,30]
[314212676,1708085455325,-755.64,0.00042191,30]
[314212677,1708085455335,-500.0,0.00042191,7]
[314212678,1708085455345,-412.24,0.00042191,30]
[314212679,1708085455355,-577.92,0.00042191,7]
[314212680,1708085455364,-500.0,0.00042191,30]
[314212681,1708085455373,-366.91348242,0.00042191,30]
[314212682,1708085455383,-500.0,0.00042191,30]
[314212683,1708085455392,-607.69,0.00042191,30]
[314212684,1708085455402,-206.33803782,0.00042191,30]
[314212685,1708085455411,-2559.47,0.00042191,30]
[314212686,1708085455421,-2676.8,0.00042191,30]
[314212687,1708085455430,-1993.32,0.00042191,30]
[314212688,1708085455439,-500.0,0.00042191,30]
[314212689,1708085455449,-508.32,0.00042191,30]
[314212690,1708085455460,-500.0,0.00042191,30]
[314212691,1708085455469,-500.0,0.00042191,30]
[314212692,1708085455478,-1032.67,0.000422,7]
[314212693,1708085455488,-500.0,0.00042219,7]
[314212694,1708085455497,-500.0,0.00042219,7]
[314212695,1708085455506,-469.10506468,0.0004224,30]
[314212696,1708085455515,-153.0,0.00042251,7]
[314212697,1708085455525,-185.0,0.00042251,7]
[314212698,1708085455534,-166.66666668,0.00042254,30]
[314212699,1708085455544,-150.0,0.00042257,30]
[314212700,1708085455554,-150.0,0.0004228,2]
[314212701,1708085455563,-170.06,0.00042299,2]
[314212702,1708085455572,-200.0,0.0004234,7]
[314212703,1708085455582,-153.0,0.00042388,7]
[314212704,1708085455591,-185.0,0.00042388,7]
[314212705,1708085455599,-150.0,0.00042394,2]
[314212706,1708085455609,-200000.0,0.00042419,30]
[314212707,1708085455618,-151.0,0.00042419,14]
[314212708,1708085455627,-151.0,0.00042419,14]
[314212709,1708085455636,-532.15,0.00042465,30]
[314212710,1708085455645,-500.0,0.00042465,30]
[314212711,1708085455654,-500.0,0.00042465,7]
[314212712,1708085455664,-509.29,0.00042465,30]
[314212713,1708085455673,-500.0,0.00042465,30]
[314212714,1708085455682,-500.0,0.00042465,30]
[314212715,1708085455691,-1000.0,0.00042465,3]
[314212716,1708085455701,-3915.01,0.00042465,30]
[314212717,1708085455710,-755.64,0.00042465,30]
[314212718,1708085455719,-577.92,0.00042465,7]
[314212719,1708085455728,-500.0,0.00042465,30]
[314212720,1708085455737,-500.0,0.00042465,30]
[314212721,1708085455746,-607.69,0.00042465,30]
[314212722,1708085455754,-2559.47,0.00042465,30]
[314212723,1708085455764,-2676.8,0.00042465,30]
[314212724,1708085455773,-1993.32,0.00042465,30]
[314212725,1708085455782,-500.0,0.00042465,30]
[314212726,1708085455791,-508.32,0.00042465,30]
[314212727,1708085455800,-500.0,0.00042465,30]
[314212728,1708085455809,-500.0,0.00042465,30]
[314212729,1708085455819,-500.0,0.00042492,7]
[314212730,1708085455829,-500.0,0.00042492,7]
[314212731,1708085455839,-1384.36785045,0.000425,2]
[314212732,1708085455848,-800.0,0.00042524,20]
[314212733,1708085455858,-150.0,0.0004254,2]
[314212734,1708085455867,-1000.0,0.00042553,15]
[314212735,1708085455877,-150.0,0.00042553,2]
[314212736,1708085455886,-1000.0,0.00042556,15]
[314212737,1708085455898,-150.0,0.0004256,2]
[314212738,1708085455909,-1000.0,0.00042565,15]
[314212739,1708085455920,-1000.0,0.00042582,15]
[314212740,1708085455929,-150.0,0.00042583,2]
[314212741,1708085455938,-1000.0,0.00042586,15]
[314212742,1708085455947,-1000.0,0.00042586,15]
[314212743,1708085455956,-1000.0,0.00042586,15]
[314212744,1708085455965,-150.0,0.00042593,2]
[314212745,1708085455974,-1000.0,0.000426,7]
[314212746,1708085455983,-456.377079,0.000426,2]
[314212747,1708085455992,-1060.89403454,0.00042627,17]
[314212748,1708085456001,-150.0,0.00042634,2]
[314212749,1708085456011,-2547.92117117,0.00042637,5]
[314212750,1708085456020,-150.0,0.00042656,2]
[314212751,1708085456029,-150.0,0.00042681,2]
[314212752,1708085456038,-706.13,0.000427,4]
[314212753,1708085456048,-706.13,0.000427,4]
[314212754,1708085456057,-706.13,0.000427,4]
[314212755,1708085456066,-706.13,0.000427,4]
[314212756,1708085456075,-706.13,0.000427,4]
[314212757,1708085456085,-706.13,0.000427,4]
[314212758,1708085456094,-706.13,0.000427,4]
[314212759,1708085456103,-706.13,0.000427,4]
[314212760,1708085456112,-706.13,0.000427,4]
[314212761,1708085456121,-706.13,0.000427,4]
[314212762,1708085456130,-706.13,0.000427,4]
[314212763,1708085456139,-706.13,0.000427,4]
[314212764,1708085456148,-706.13,0.000427,4]
[314212765,1708085456157,-706.13,0.000427,4]
[314212766,1708085456168,-706.13,0.000427,4]
[314212767,1708085456177,-706.13,0.000427,4]
[314212768,1708085456186,-706.13,0.000427,4]
[314212769,1708085456195,-706.13,0.000427,4]
[314212770,1708085456204,-706.13,0.000427,4]
[314212771,1708085456213,-706.13,0.000427,4]
[314212772,1708085456223,-154.24,0.000427,4]
[314212773,1708085456233,-154.24,0.000427,4]
[314212774,1708085456243,-150.0,0.00042709,2]
[314212775,1708085456253,-152.59450358,0.00042716,30]
[314212776,1708085456264,-150.0,0.00042735,2]
[314212777,1708085456274,-900.0,0.00042739,7]
[314212778,1708085456283,-532.15,0.00042739,30]
[314212779,1708085456292,-500.0,0.00042739,30]
[314212780,1708085456303,-500.0,0.00042739,7]
[314212781,1708085456312,-509.29,0.00042739,30]
[314212782,1708085456321,-500.0,0.00042739,30]
[314212783,1708085456331,-500.0,0.00042739,30]
[314212784,1708085456340,-3915.01,0.00042739,30]
[314212785,1708085456350,-755.64,0.00042739,30]
[314212786,1708085456359,-577.92,0.00042739,7]
[314212787,1708085456368,-500.0,0.00042739,30]
[314212788,1708085456377,-500.0,0.00042739,30]
[314212789,1708085456386,-607.69,0.00042739,30]
[314212790,1708085456395,-2559.47,0.00042739,30]
[314212791,1708085456404,-2676.8,0.00042739,30]
[314212792,1708085456413,-1993.32,0.00042739,30]
[314212793,1708085456424,-500.0,0.00042739,30]
[314212794,1708085456433,-508.32,0.00042739,30]
[314212795,1708085456442,-500.0,0.00042739,30]
[314212796,1708085456451,-500.0,0.00042739,30]
[314212797,1708085456461,-834.77,0.0004274,2]
[314212798,1708085456470,-150.0,0.00042742,2]
[314212799,1708085456479,-200.0,0.00042745,20]
[314212800,1708085456488,-150.0,0.00042755,2]
[314212801,1708085456497,-150.0,0.00042761,2]
[314212802,1708085456506,-150.0,0.00042763,2]
[314212803,1708085456515,-500.0,0.00042765,7]
[314212804,1708085456524,-500.0,0.00042765,7]
[314212805,1708085456535,-150.0,0.00042772,2]
[314212806,1708085456546,-150.0,0.00042781,2]
[314212807,1708085456556,-150.0,0.00042798,2]
[314212808,1708085456565,-150.0,0.00042802,2]
[314212809,1708085456574,-150.0,0.00042807,2]
[314212810,1708085456583,-150.0,0.00042816,2]
[314212811,1708085456593,-150.0,0.00042826,2]
[314212812,1708085456601,-150.0,0.00042845,2]
[314212813,1708085456610,-150.0,0.00042849,2]
[314212814,1708085456619,-24034.12729336,0.00042856,5]
[314212815,1708085456628,-150.0,0.00042869,2]
[314212816,1708085456637,-931.69523334,0.0004287,11]
[314212817,1708085456646,-150.0,0.00042891,2]
[314212818,1708085456655,-150.0,0.000429,2]
[314212819,1708085456664,-176.42331574,0.000429,36]
[314212820,1708085456674,-11328.05656985,0.00042912,5]
[314212821,1708085456683,-1292.17,0.00042923,2]
[314212822,1708085456692,-155.8,0.00042938,2]
[314212823,1708085456700,-150.0,0.00042939,2]
[314212824,1708085456710,-154.13603138,0.00042958,2]
[314212825,1708085456718,-150.0,0.00042959,2]
[314212826,1708085456727,-150.0,0.00042963,2]
[314212827,1708085456736,-800.0,0.00042966,20]
[314212828,1708085456844,-19846.0,0.00042986,2]
[314212829,1708085456853,-2288.0,0.00042986,2]
[314212830,1708085456863,-8164.0,0.00042986,2]
[314212831,1708085456873,-2927.0,0.00042986,2]
[314212832,1708085456882,-4098.0,0.00042986,2]
[314212833,1708085456891,-150.0,0.00042999,4]
[314212834,1708085456900,-100000.0,0.00043,23]
[314212835,1708085456909,-222.48063823,0.00043,120]
[314212836,1708085456919,-40000.0,0.00043,120]
[314212837,1708085456928,-50000.0,0.00043,60]
[314212838,1708085456937,-51500.22259664,0.00043,7]
[314212839,1708085456946,-100000.0,0.00043,28]
[314212840,1708085456956,-100000.0,0.00043,23]
[314212841,1708085456965,-119999.99999999,0.00043,27]
[314212842,1708085456974,-151.0,0.00043,7]
[314212843,1708085456984,-2500.0,0.00043,31]
[314212844,1708085456992,-1000.0,0.00043,2]
[314212845,1708085457003,-1853.98377744,0.00043,44]
[314212846,1708085457012,-10000.0,0.00043,30]
[314212847,1708085457021,-150.0,0.00043012,2]
[314212848,1708085457030,-532.15,0.00043013,30]
[314212849,1708085457040,-500.0,0.00043013,30]
[314212850,1708085457049,-162.2,0.00043013,7]
[314212851,1708085457059,-509.29,0.00043013,30]
[314212852,1708085457069,-500.0,0.00043013,30]
[314212853,1708085457078,-500.0,0.00043013,30]
[314212854,1708085457087,-150.0,0.00043013,2]
[314212855,1708085457097,-3915.01,0.00043013,30]
[314212856,1708085457107,-755.64,0.00043013,30]
[314212857,1708085457116,-577.92,0.00043013,7]
[314212858,1708085457126,-500.0,0.00043013,30]
[314212859,1708085457135,-500.0,0.00043013,30]
[314212860,1708085457146,-607.69,0.00043013,30]
[314212861,1708085457155,-2559.47,0.00043013,30]
[314212862,1708085457164,-2676.8,0.00043013,30]
[314212863,1708085457176,-1993.32,0.00043013,30]
[314212864,1708085457185,-500.0,0.00043013,30]
[314212865,1708085457195,-508.32,0.00043013,30]
[314212866,1708085457205,-500.0,0.00043013,30]
[314212867,1708085457214,-500.0,0.00043013,30]
[314212868,1708085457223,-150.0,0.00043018,2]
[314212869,1708085457233,-150.0,0.00043021,2]
[314212870,1708085457242,-154.0,0.00043032,28]
[314212871,1708085457252,-500.0,0.00043039,7]
[314212872,1708085457263,-500.0,0.00043039,7]
[314212873,1708085457274,-150.0,0.00043052,2]
[314212874,1708085457284,-150.0,0.00043063,2]
[314212875,1708085457293,-150.0,0.00043078,2]
[314212876,1708085457302,-1060.89403454,0.00043082,17]
[314212877,1708085457312,-151.0,0.00043114,2]
[314212878,1708085457322,-250.49088,0.00043114,2]
[314212879,1708085457331,-150.0,0.00043115,2]
[314212880,1708085457340,-150.0,0.00043123,2]
[314212881,1708085457350,-150.0,0.00043124,2]
[314212882,1708085457361,-150.0,0.00043144,2]
[314212883,1708085457370,-150.0,0.00043155,2]
[314212884,1708085457379,-150.0,0.00043175,2]
[314212885,1708085457388,-3000.0,0.0004318,17]
[314212886,1708085457398,-150.0,0.00043182,2]
[314212887,1708085457406,-150.0,0.00043184,2]
[314212888,1708085457415,-800.0,0.00043188,2]
[314212889,1708085457425,-150.0,0.00043208,2]
[314212890,1708085457435,-150.0,0.00043226,2]
[314212891,1708085457445,-150.0,0.00043234,2]
[314212892,1708085457457,-150.0,0.00043237,2]
[314212893,1708085457466,-150.0,0.00043244,2]
[314212894,1708085457476,-150.0,0.00043246,2]
[314212895,1708085457485,-150.0,0.00043254,2]
[314212896,1708085457495,-150.0,0.00043277,2]
[314212897,1708085457506,-2000.0,0.0004328,2]
[314212898,1708085457518,-150.0,0.00043286,2]
[314212899,1708085457527,-1050.0,0.00043287,7]
[314212900,1708085457538,-532.15,0.00043287,30]
[314212901,1708085457549,-500.0,0.00043287,30]
[314212902,1708085457559,-509.29,0.00043287,30]
[314212903,1708085457568,-500.0,0.00043287,30]
[314212904,1708085457577,-500.0,0.00043287,30]
[314212905,1708085457586,-3915.01,0.00043287,30]
[314212906,1708085457595,-755.64,0.00043287,30]
[314212907,1708085457604,-577.92,0.00043287,7]
[314212908,1708085457613,-500.0,0.00043287,30]
[314212909,1708085457623,-483.65188709,0.00043287,30]
[314212910,1708085457631,-607.69,0.00043287,30]
[314212911,1708085457641,-2559.47,0.00043287,30]
[314212912,1708085457650,-2676.8,0.00043287,30]
[314212913,1708085457659,-1993.32,0.00043287,30]
[314212914,1708085457669,-500.0,0.00043287,30]
[314212915,1708085457679,-508.32,0.00043287,30]
[314212916,1708085457688,-500.0,0.00043287,30]
[314212917,1708085457697,-500.0,0.00043287,30]
[314212918,1708085457706,-150.0,0.00043288,2]
[314212919,1708085457715,-241.1,0.00043288,2]
[314212920,1708085457724,-150.0,0.00043288,2]
[314212921,1708085457733,-150.0,0.00043288,2]
[314212922,1708085457742,-1395.753737,0.000433,30]
[314212923,1708085457751,-200.0,0.000433,17]
[314212924,1708085457760,-706.13,0.000433,4]
[314212925,1708085457769,-706.13,0.000433,4]
[314212926,1708085457778,-706.13,0.000433,4]
[314212927,1708085457787,-706.13,0.000433,4]
[314212928,1708085457796,-706.13,0.000433,4]
[314212929,1708085457805,-706.13,0.000433,4]
[314212930,1708085457814,-706.13,0.000433,4]
[314212931,1708085457824,-706.13,0.000433,4]
[314212932,1708085457833,-706.13,0.000433,4]
[314212933,1708085457844,-706.13,0.000433,4]
[314212934,1708085457853,-706.13,0.000433,4]
[314212935,1708085457863,-706.13,0.000433,4]
[314212936,1708085457872,-706.13,0.000433,4]
[314212937,1708085457881,-706.13,0.000433,4]
[314212938,1708085457891,-706.13,0.000433,4]
[314212939,1708085457900,-706.13,0.000433,4]
[314212940,1708085457909,-706.13,0.000433,4]
[314212941,1708085457919,-706.13,0.000433,4]
[314212942,1708085457928,-706.13,0.000433,4]
[314212943,1708085457937,-706.13,0.000433,4]
[314212944,1708085457947,-154.24,0.000433,4]
[314212945,1708085457956,-154.24,0.000433,4]
[314212946,1708085457965,-154.24,0.000433,4]
[314212947,1708085457975,-154.24,0.000433,4]
[314212948,1708085457984,-500.0,0.00043312,7]
[314212949,1708085457993,-500.0,0.00043312,7]
[314212950,1708085458003,-1001.52245,0.00043321,5]
[314212951,1708085458012,-154.97767,0.00043321,5]
[314212952,1708085458021,-150.0,0.00043356,2]
[314212953,1708085458031,-150.0,0.00043367,2]
[314212954,1708085458039,-150.0,0.00043373,2]
[314212955,1708085458049,-150.0,0.00043374,2]
[314212956,1708085458058,-150.0,0.00043377,2]
[314212957,1708085458069,-150.0,0.0004338,2]
[314212958,1708085458079,-262.3571618,0.00043382,60]
[314212959,1708085458089,-150.0,0.0004339,2]
[314212960,1708085458099,-150.0,0.00043402,2]
[314212961,1708085458108,-150.0,0.00043403,2]
[314212962,1708085458117,-150.0,0.00043403,2]
[314212963,1708085458126,-200.0,0.00043408,15]
[314212964,1708085458135,-800.0,0.00043408,20]
[314212965,1708085458144,-200.0,0.00043408,20]
[314212966,1708085458154,-500.0,0.00043408,20]
[314212967,1708085458164,-150.0,0.00043412,2]
[314212968,1708085458174,-150.0,0.00043413,2]
[314212969,1708085458183,-150.0,0.00043428,2]
[314212970,1708085458192,-150.0,0.00043431,2]
[314212971,1708085458201,-150.0,0.00043439,2]
[314212972,1708085458211,-150.0,0.00043441,2]
[314212973,1708085458220,-150.0,0.0004345,2]
[314212974,1708085458230,-150.0,0.0004345,2]
[314212975,1708085458240,-150.0,0.00043453,2]
[314212976,1708085458251,-150.0,0.00043456,4]
[314212977,1708085458264,-150.0,0.00043459,2]
[314212978,1708085458276,-150.0,0.00043463,2]
[314212979,1708085458285,-150.0,0.00043468,2]
[314212980,1708085458294,-522.2,0.0004347,120]
[314212981,1708085458304,-200.0,0.00043473,2]
[314212982,1708085458314,-150.0,0.00043479,2]
[314212983,1708085458323,-150.0,0.0004349,2]
[314212984,1708085458332,-150.0,0.00043493,2]
[314212985,1708085458343,-150.0,0.00043497,2]
[314212986,1708085458353,-4000.0,0.000435,12]
[314212987,1708085458362,-336.28737981,0.000435,7]
[314212988,1708085458372,-20110.0,0.000435,30]
[314212989,1708085458381,-1000.0,0.000435,2]
[314212990,1708085458390,-10000.0,0.000435,5]
[314212991,1708085458400,-206.0,0.00043502,31]
[314212992,1708085458409,-150.0,0.00043514,2]
[314212993,1708085458419,-10000.0,0.00043531,4]
[314212994,1708085458429,-252.781242,0.00043536,14]
[314212995,1708085458438,-1060.89403454,0.00043536,18]
[314212996,1708085458448,-1000.0,0.0004354,2]
[314212997,1708085458457,-1000.0,0.0004354,2]
[314212998,1708085458467,-1000.0,0.0004354,2]
[314212999,1708085458476,-1000.0,0.0004354,2]
[314213000,1708085458485,-1000.0,0.0004354,2]
[314213001,1708085458495,-1000.0,0.0004354,2]
[314213002,1708085458504,-1000.0,0.0004354,2]
[314213003,1708085458513,-1000.0,0.0004354,2]
[314213004,1708085458522,-1000.0,0.0004354,2]
[314213005,1708085458532,-1000.0,0.0004354,2]
[314213006,1708085458541,-1000.0,0.0004354,2]
[314213007,1708085458550,-1000.0,0.0004354,2]
[314213008,1708085458559,-1000.0,0.0004354,2]
[314213009,1708085458568,-1000.0,0.0004354,2]
[314213010,1708085458577,-1000.0,0.0004354,2]
[314213011,1708085458587,-1000.0,0.0004354,2]
[314213012,1708085458596,-1000.0,0.0004354,2]
[314213013,1708085458605,-1000.0,0.0004354,2]
[314213014,1708085458615,-1000.0,0.0004354,2]
[314213015,1708085458624,-1000.0,0.0004354,2]
[314213016,1708085458634,-1000.0,0.0004354,2]
[314213017,1708085458643,-869.0007,0.0004354,2]
[314213018,1708085458653,-150.0,0.00043541,2]
[314213019,1708085458662,-227.43170576,0.00043561,30]
[314213020,1708085458672,-1097.9011991,0.00043561,30]
[314213021,1708085458681,-532.15,0.00043561,30]
[314213022,1708085458691,-500.0,0.00043561,30]
[314213023,1708085458700,-509.29,0.00043561,30]
[314213024,1708085458709,-522.35206864,0.00043561,30]
[314213025,1708085458718,-500.0,0.00043561,30]
[314213026,1708085458727,-3915.01,0.00043561,30]
[314213027,1708085458737,-755.64,0.00043561,30]
[314213028,1708085458746,-577.92,0.00043561,7]
[314213029,1708085458755,-500.0,0.00043561,30]
[314213030,1708085458764,-607.69,0.00043561,30]
[314213031,1708085458772,-2559.47,0.00043561,30]
[314213032,1708085458781,-2676.8,0.00043561,30]
[314213033,1708085458790,-1993.32,0.00043561,30]
[314213034,1708085458799,-508.32,0.00043561,30]
[314213035,1708085458808,-500.0,0.00043561,30]
[314213036,1708085458817,-500.0,0.00043561,30]
[314213037,1708085458827,-150.0,0.00043579,2]
[314213038,1708085458836,-500.0,0.00043585,7]
[314213039,1708085458845,-500.0,0.00043585,7]
[314213040,1708085458855,-150.0,0.00043585,2]
[314213041,1708085458864,-150.0,0.00043588,2]
[314213042,1708085458873,-150.0,0.00043595,2]
[314213043,1708085458883,-47392.76445604,0.000436,21]
[314213044,1708085458893,-170.06,0.0004361,2]
[314213045,1708085458902,-150.0,0.00043636,2]
[314213046,1708085458911,-150.0,0.00043642,2]
[314213047,1708085458920,-150.0,0.00043653,2]
[314213048,1708085458929,-150.0,0.00043661,2]
[314213049,1708085458938,-150.0,0.00043666,2]
[314213050,1708085458948,-150.0,0.00043668,2]
[314213051,1708085458957,-151.0,0.0004367,7]
[314213052,1708085458966,-150.0,0.00043676,2]
[314213053,1708085458975,-1500.0,0.00043679,2]
[314213054,1708085458984,-300.0,0.00043682,2]
[314213055,1708085458993,-150.0,0.00043685,2]
[314213056,1708085459002,-152.95291817,0.0004369,2]
[314213057,1708085459012,-198.0,0.0004369,2]
[314213058,1708085459021,-2371.98,0.000437,7]
[314213059,1708085459031,-3000.0,0.000437,56]
[314213060,1708085459040,-238.296015,0.000437,19]
[314213061,1708085459049,-1203.1204244,0.000437,9]
[314213062,1708085459058,-300.0,0.000437,9]
[314213063,1708085459067,-1989.725644,0.000437,19]
[314213064,1708085459076,-200.0,0.000437,56]
[314213065,1708085459085,-200.0,0.000437,2]
[314213066,1708085459096,-931.69523334,0.000437,11]
[314213067,1708085459106,-164.49529373,0.000437,2]